Cogmind - Beta 16.1 @@@ ROGUE MODE // 2026.04.05 @ 23:35:39 Player: GiggleBox Result: Self-destructed Performance ------------- Evolutions (5) 2500 Regions Visited (11) 2200 Robots Destroyed (170) 850 Value Destroyed (7400) 7400 Prototype IDs (33) 660 Alien Tech Used (0) 0 Bonus (1128) 1128 TOTAL SCORE: 14738 Bonus ------- High Alert Combat Kills 95 Follower Combat Kills 233 Aligned with FarCom 300 Met R17 at Cetus 500 Cogmind --------- Core Integrity 870/1000 Matter 151/300 Energy 90/100 System Corruption 10% Temperature Cool (0) Movement Treading (160) Location -5/Waste Parts ------- > --- POWER (1) -------- (None) > --- PROPULSION (5) --- Centrium Heavy Treads Centrium Heavy Treads > --- UTILITY (5) ------ Advanced Cooling System Advanced Targeting Computer Core Analyzer Weapon Cycler > --- WEAPON (6) ------- (None) > --- INVENTORY (5) ---- Centrium Heavy Treads Improved Cryofiber Web Matter Compressor (0) Heavy Machine Gun Peak State ------------ > --- POWER ------------ Quantum Reactor > --- PROPULSION ------- Advanced Treads Centrium Heavy Treads Centrium Heavy Treads > --- UTILITY ---------- Advanced Cooling System Huge Storage Unit Advanced Targeting Computer Core Analyzer Centrium Medium Armor Plating > --- WEAPON ----------- Hypervelocity Gauss Rifle KE Penetrator Advanced KE Penetrator Advanced KE Penetrator Advanced KE Penetrator Advanced KE Penetrator > --- INVENTORY -------- Quantum Reactor Quantum Reactor Centrium Heavy Treads Improved Cryofiber Web Improved Heat Sink Large Storage Unit High-capacity Matter Pod Matter Compressor Improved Target Analyzer Weapon Cycler Centrium Medium Armor Plating Centrium Medium Armor Plating System Restoration Module System Restoration Module High-powered Tractor Beam PSU Rigger Heavy Machine Gun KE Penetrator KE Penetrator KE Penetrator Improved Proton Missile Launcher Improved Proton Missile Launcher Long-range Missile Launcher Power Sword [Rating: 128] Favorites ----------- Power Improved Deuterium Engine Engine Improved Deuterium Engine Reactor Quantum Reactor Propulsion Advanced Treads Treads Advanced Treads Leg Carbon-fiber Leg Wheel Compact Wheel Utility Improved Heat Sink Device Improved Heat Sink Storage Large Storage Unit Processor Advanced Targeting Computer Protection Hardened Heavy Armor Plating Weapon Heavy Assault Rifle Ballistic Gun Heavy Assault Rifle Ballistic Cannon Bore Cannon Launcher Grenade Launcher Slashing Weapon Makeshift Axe Build | -11 -10 -10 -10 -9 -8 -7 -6 -6 -6 -5 -5 ------- Run | Yrd Mat Min Exi Min Mat Fac Fac Ext Cet Fac Was Slots Evolved 10 | . . . . . 4 2 2 . . 2 . Power . | . . . . . . . . . . . . Propulsion 3 | . . . . . 1 1 1 . . . . Utility 3 | . . . . . 1 1 . . . 1 . Weapon 4 | . . . . . 2 . 1 . . 1 . Parts Attached 86 | 4 1 2 . 2 29 15 7 10 10 5 1 Power 5 | . . . . . 3 1 . . 1 . . Engine 4 | . . . . . 3 1 . . . . . Core . | . . . . . . . . . . . . Reactor 1 | . . . . . . . . . 1 . . Propulsion 23 | 2 . . . . 10 4 1 3 3 . . Treads 18 | 2 . . . . 5 4 1 3 3 . . Leg 4 | . . . . . 4 . . . . . . Wheel 1 | . . . . . 1 . . . . . . Hover . | . . . . . . . . . . . . Flight . | . . . . . . . . . . . . Utility 26 | 1 1 . . 2 6 6 2 2 1 4 1 Device 13 | 1 . . . 2 2 3 1 . . 3 1 Storage 3 | . 1 . . . 1 1 . . . . . Processor 3 | . . . . . . . 1 2 . . . Hackware . | . . . . . . . . . . . . Protection 7 | . . . . . 3 2 . . 1 1 . Artifact . | . . . . . . . . . . . . Weapon 32 | 1 . 2 . . 10 4 4 5 5 1 . Energy Gun . | . . . . . . . . . . . . Energy Cannon . | . . . . . . . . . . . . Ballistic Gun 23 | 1 . 1 . . 8 4 1 2 5 1 . Ballistic Cannon 1 | . . . . . . . . 1 . . . Launcher 5 | . . 1 . . 1 . 1 2 . . . Special Weapon . | . . . . . . . . . . . . Impact Weapon . | . . . . . . . . . . . . Slashing Weapon 3 | . . . . . 1 . 2 . . . . Piercing Weapon . | . . . . . . . . . . . . Special Melee Weapon . | . . . . . . . . . . . . Unidentified Prototypes 4 | . . . . 1 . . . . 3 . . Parts Lost 28 | . . 1 . . 8 1 . 6 8 1 3 Power 1 | . . . . . 1 . . . . . . Propulsion 13 | . . . . . 4 . . 3 5 1 . Utility 2 | . . . . . . . . 1 . . 1 Weapon 12 | . . 1 . . 3 1 . 2 3 . 2 Highest Loss Streak 5 | . . 1 . . 2 1 . 2 5 1 3 To Critical Strikes 1 | . . . . . . . . . 1 . . Average Backups 16 | 5 8 11 12 14 14 14 16 20 23 23 21 Power 1 | 1 1 1 2 2 2 . . 1 3 2 1 Propulsion 1 | 3 2 2 2 1 . 3 3 1 . 1 1 Utility 7 | . 2 3 4 7 7 6 8 9 12 12 10 Weapon 5 | 1 3 4 4 4 4 4 5 8 7 7 8 Tool/Special . | . . . . . . . . . . . . Unused Backups 46 | 4 4 1 . 2 11 1 1 3 5 2 12 Power 14 | . 1 . . . 4 1 . 3 3 . 2 Propulsion 8 | 4 . . . 1 2 . . . . . 1 Utility 15 | . 2 1 . . 4 . . . 2 1 5 Weapon 9 | . 1 . . 1 1 . 1 . . 1 4 Tool/Special . | . . . . . . . . . . . . Average Slot Usage (%) 93 | . 100 100 100 100 94 90 92 94 90 87 77 Engine 7 | . 14 14 14 14 8 7 6 6 1 . . Treads 26 | . 28 28 28 28 13 30 33 32 23 16 11 Leg 2 | . . . . . 11 . . . . . . Device 6 | . 14 14 14 14 6 2 5 6 5 5 7 Storage 8 | . 14 14 14 14 9 7 6 6 6 5 4 Processor 1 | . . . . . . . . 3 13 11 11 Protection 5 | . . . . . 8 11 6 4 . 4 2 Ballistic Gun 31 | . 28 27 28 28 34 29 32 32 32 34 31 Peak Build Rating 128 | 7 8 9 10 17 30 43 51 54 109 128 125 Average Rating 41 | 6 7 8 9 10 24 39 47 51 72 124 118 On Entrance 37 | 6 7 8 9 10 10 30 41 49 54 109 119 Avg Prop Armor Cover (%) 11 | . . . . . 11 . . . . . . Naked Turns . | . . . . . . . . . . . . Heaviest Build 144 | 12 27 27 26 26 56 116 126 132 131 144 144 Greatest Support 182 | 40 40 40 40 40 66 88 108 108 182 182 160 Greatest Overweight (x) 2 | . . . . . 2 1 1 1 1 . . Average Overweight (x) . | . . . . . . . . . . . . Largest Inventory Capacity 25 | 8 15 15 15 15 15 25 25 25 25 25 25 Average Capacity 19 | 8 14 15 15 15 15 15 23 25 25 25 22 Most Carried 25 | 7 11 12 15 15 15 15 21 22 25 25 24 Average Carried 16 | 5 8 11 12 14 14 14 16 20 23 24 21 Final Capacity 25 | 8 15 15 15 15 15 15 25 25 25 25 5 Final Carried 25 | 5 11 12 15 14 15 15 20 22 25 24 5 Class Distribution -------------------- 42% | Scavenger-Skirmisher 17% | Mutant 9% | Scavenger-Tank 9% | Skirmisher 6% | Scavenger-Executioner 5% | Scientist-Skirmisher 4% | Scientist-Gunner 3% | Scavenger-Gunner Dominant Class ---------------- Mutant | -10/Materials Mutant | -10/Mines Mutant | -10/Exiles Mutant | -9/Mines Scavenger-Skirmisher | -8/Materials Scavenger-Tank | -7/Factory Scavenger-Skirmisher | -6/Factory Scavenger-Skirmisher | -6/Extension Scavenger-Gunner | -6/Cetus Scavenger-Executioner | -5/Factory Scavenger-Mutant | -5/Waste Resources | -11 -10 -10 -10 -9 -8 -7 -6 -6 -6 -5 -5 ----------- Run | Yrd Mat Min Exi Min Mat Fac Fac Ext Cet Fac Was Matter Collected 6397 | 288 134 57 . 58 1313 1030 429 1105 490 1243 250 Remotely 1527 | . . . . . 67 178 178 . . 1104 . Salvage Created 8606 | 137 224 91 . 99 1498 1276 476 1781 677 1633 714 Parts 459 | 14 15 5 . 8 80 62 27 73 37 119 19 Haulers Intercepted 3 | . . . . . 2 1 . . . . . Recyclers Shooed 6 | 1 1 . . . . 2 1 . . 1 . Parts Field Recycled . | . . . . . . . . . . . . Retrieved Matter . | . . . . . . . . . . . . Parts Self-Destructed . | . . . . . . . . . . . . Prevented . | . . . . . . . . . . . . Parts Restored . | . . . . . . . . . . . . Kills | -11 -10 -10 -10 -9 -8 -7 -6 -6 -6 -5 -5 ------- Run | Yrd Mat Min Exi Min Mat Fac Fac Ext Cet Fac Was Combat Hostiles Destroyed 127 | . 5 3 . 2 33 20 7 24 8 22 3 Guns 110 | . 5 . . 2 26 20 6 18 8 22 3 AOE 16 | . . 3 . . 7 . 1 5 . . . Classes Destroyed 17 | 2 2 . . 1 7 2 . 1 . 1 1 Worker 3 | . . . . 1 . . . . . 2 . Builder 10 | . . . . . 2 1 1 2 . 4 . Tunneler 4 | 4 . . . . . . . . . . . Hauler 3 | . . . . . 2 1 . . . . . Recycler 7 | 1 . . . . . 3 1 2 . . . Mechanic 2 | . . . . . . . . . . 2 . Operator 5 | . 1 . . . 1 1 1 . . 1 . Watcher 9 | . . . . . 2 2 1 . 2 2 . Swarmer 12 | . . . . . 3 4 . . . 5 . Grunt 65 | . 5 3 . 2 20 8 3 20 . 4 . Brawler 2 | . . . . . . 1 . 1 . . . Duelist 3 | . . . . . 1 1 1 . . . . Sentry 15 | . . . . . 7 3 . 1 . 4 . Hunter 8 | . . . . . 2 1 1 . . 4 . Programmer 9 | . . . . . . 2 2 . . 5 . Behemoth 2 | . . . . . . . . 2 . . . Compactor 3 | . . . . . . . . . . . 3 Cetus Guard 8 | . . . . . . . . . 8 . . Best Kill Streak 19 | 3 2 3 . 2 7 7 6 6 5 19 3 Combat Bots Only 13 | . 2 3 . 2 6 7 5 6 4 13 3 Max Kills in Single Turn 3 | 2 1 3 . 1 3 1 1 2 2 3 1 Gunslinging 1 | . . . . . . . . 1 1 1 . Exploded 3 | . . 3 . . 3 . 1 1 . . . Melee . | . . . . . . . . . . . . Uniques/NPCs Destroyed . | . . . . . . . . . . . . Combat | -11 -10 -10 -10 -9 -8 -7 -6 -6 -6 -5 -5 -------- Run | Yrd Mat Min Exi Min Mat Fac Fac Ext Cet Fac Was Hostile Shots Fired 622 | . 35 5 . 9 159 143 38 85 53 89 6 Missed 197 | . 9 1 . 5 61 45 8 27 19 22 . Hits 425 | . 26 4 . 4 98 98 30 58 34 67 6 Melee 11 | . . . . . . 5 . . . . 6 Projectile 414 | . 26 4 . 4 98 93 30 58 34 67 . Critical Strikes 24 | . . . . . 10 2 1 2 5 3 1 Damage Taken 7471 | . 317 56 . 49 1733 1289 453 1205 911 1188 270 Core 775 | . 50 11 . 13 284 72 15 119 81 75 55 Absorbed by Shields . | . . . . . . . . . . . . Reduced by Siege Mode 20 | . . . . . . . . . 20 . . Regen/Repaired (Parts) 97 | . . . . . 97 . . . . . . Core Remaining (%) 76 | 100 . . . 70 48 89 . . 74 . . Volleys Fired 385 | 12 31 5 . 8 107 66 21 66 20 34 15 Largest 6 | 2 2 2 . 2 4 4 5 5 5 6 6 Hottest 206 | 40 40 40 . 40 94 97 117 142 147 206 206 Shots Fired 1435 | 24 62 8 . 16 392 246 94 211 100 204 78 Gun 1394 | 24 62 6 . 16 385 246 92 181 100 204 78 Cannon 23 | . . . . . . . . 23 . . . Launcher 18 | . . 2 . . 7 . 2 7 . . . Special . | . . . . . . . . . . . . Kinetic 1417 | 24 62 6 . 16 385 246 92 204 100 204 78 Thermal . | . . . . . . . . . . . . Explosive 11 | . . 2 . . 7 . 2 . . . . Electromagnetic 7 | . . . . . . . . 7 . . . Robot Hit Streak 47 | 7 10 5 . 8 25 22 12 19 47 15 22 Robot Miss Streak 7 | 3 5 1 . 3 7 5 3 4 2 3 4 Penetration Max 1 | . . . . . . . . 1 1 1 1 Secondary Targets 24 | . . . . . 3 4 1 5 4 4 3 Max Gunslinging Chain 2 | . . . . . 1 1 1 2 1 2 1 Shots Hit Robots 937 | 13 40 7 . 12 237 172 56 143 76 114 67 Core Hits 439 | 6 15 7 . 8 114 68 26 76 39 64 16 Critical Kills 24 | . . . . . . . 2 . 6 16 . Critical Parts Destroyed 23 | . . 1 . . 1 2 . 1 2 14 2 Critical Strikes 57 | . . 1 . . 1 2 2 1 9 33 8 Destroy 57 | . . 1 . . 1 2 2 1 9 33 8 Melee Attacks 3 | . . . . . . . 3 . . . . Impact . | . . . . . . . . . . . . Slashing 3 | . . . . . . . 3 . . . . Piercing . | . . . . . . . . . . . . Sneak Attacks . | . . . . . . . . . . . . Combat Hostiles . | . . . . . . . . . . . . Follow-up Attacks . | . . . . . . . . . . . . Damage Inflicted 17485 | 158 415 261 . 99 3717 2759 1202 3024 1359 2782 1709 Guns 15071 | 158 415 50 . 96 2643 2726 924 2293 1359 2698 1709 Cannons 31 | . . . . . . . . 31 . . . Explosions 2268 | . . 211 . . 1048 . 256 700 . 53 . Melee . | . . . . . . . . . . . . Ramming 115 | . . . . 3 26 33 22 . . 31 . Kinetic 15102 | 158 415 50 . 96 2643 2726 924 2324 1359 2698 1709 Thermal 334 | . . . . . 175 . . 159 . . . Explosive 1340 | . . 211 . . 873 . 256 . . . . Electromagnetic 594 | . . . . . . . . 541 . 53 . Impact . | . . . . . . . . . . . . Slashing . | . . . . . . . . . . . . Piercing . | . . . . . . . . . . . . Highest Corruption 10 | . . . . . 2 3 . . . 5 10 Average Corruption 2 | . . . . . 2 1 . . . 3 10 Corruption Purged 8 | . . . . . . 3 . . . 5 . Corruption Blocked . | . . . . . . . . . . . . Effects 46 | . . . . . 31 7 . . . 3 5 Message Errors 12 | . . . . . 6 2 . . . 3 1 Matter Fused 10 | . . . . . 9 . . . . . 1 Heat Flow Errors 4 | . . . . . 4 . . . . . . Energy Discharges 5 | . . . . . 3 2 . . . . . Data Loss (minor) 5 | . . . . . 2 1 . . . . 2 Data Loss (major) 4 | . . . . . 4 . . . . . . Misfires 1 | . . . . . . 1 . . . . . Weapon Failures 5 | . . . . . 3 1 . . . . 1 Overload Shots . | . . . . . . . . . . . . Overflow Damage 38 | . . . . . 38 . . . . . . Projectiles . | . . . . . . . . . . . . Explosions 38 | . . . . . 38 . . . . . . Melee . | . . . . . . . . . . . . Knockbacks 1 | . . . . . . 1 . . . . . Impact 1 | . . . . . . 1 . . . . . Kinetic . | . . . . . . . . . . . . Secondary . | . . . . . . . . . . . . Self-Inflicted Damage 129 | . . . . . 110 . . 19 . . . Shots 3 | . . . . . 2 . . 1 . . . Rammed 10 | . . . . 1 1 5 2 . . 1 . Targets Rammed 14 | . . . . 1 4 6 2 . . 1 . Kicked 3 | . . . . . 3 . . . . . . Crushed 1 | . . . . . . 1 . . . . . Highest Temperature 394 | . 18 18 . 15 242 345 92 100 48 394 63 Average Temperature 65 | . 8 12 . 11 42 106 28 20 12 139 21 Received Heat Transfer 2085 | . 159 33 . 30 864 309 171 465 18 36 . Effects 1 | . . . . . . 1 . . . . . Interference 1 | . . . . . . 1 . . . . . Siege Activations 1 | . . . . . . . . . 1 . . Total Turns 17 | . . . . . . . . . 17 . . Longest Duration 17 | . . . . . . . . . 17 . . Martial Activations . | . . . . . . . . . . . . Shielding Activations . | . . . . . . . . . . . . Robots Disrupted . | . . . . . . . . . . . . Combat Hostiles . | . . . . . . . . . . . . Robots Corrupted 1 | . . . . . . . . 1 . . . Combat Hostiles 1 | . . . . . . . . 1 . . . Parts Fried 5 | . . . . . . . . 5 . . . Impact Corruptions . | . . . . . . . . . . . . Robots Melted . | . . . . . . . . . . . . Combat Hostiles . | . . . . . . . . . . . . Parts Melted 1 | . . . . . . . . 1 . . . Heat Transferred 250 | . . . . . 200 . . 50 . . . Parts Sabotaged . | . . . . . . . . . . . . Parts Stolen . | . . . . . . . . . . . . Parts Stripped . | . . . . . . . . . . . . Power Chain Reactions . | . . . . . . . . . . . . Alert | -11 -10 -10 -10 -9 -8 -7 -6 -6 -6 -5 -5 ------- Run | Yrd Mat Min Exi Min Mat Fac Fac Ext Cet Fac Was Maximum Alert Level 2 | . . . . . 1 1 . . . 2 . Low Security (%) 84 | 100 100 100 . 100 44 92 100 100 100 56 100 Level 1 13 | . . . . . 55 7 . . . 11 . Level 2 2 | . . . . . . . . . . 31 . Level 3 . | . . . . . . . . . . . . Level 4 . | . . . . . . . . . . . . Level 5 . | . . . . . . . . . . . . High Security . | . . . . . . . . . . . . Max Security . | . . . . . . . . . . . . Peak Influence 568 | 5 52 118 . 55 352 213 133 179 96 568 196 Initial 196 | . 3 . . . 9 151 90 9 86 8 196 Average 92 | 2 9 47 . 11 201 92 27 56 53 193 180 Influence Increases 4150 | 25 150 158 . 70 1062 573 310 860 186 746 10 Destroy 0b10 Robot/C 2620 | . 100 120 . 40 660 400 140 560 160 440 . Destroy 0b10 Robot/NC 220 | 25 5 . . 5 35 40 20 25 10 55 . Destroy Leader 530 | . 30 20 . 10 168 96 42 70 . 94 . Allied During Kill 77 | . . 8 . . . . . 69 . . . Successful Hack 91 | . 14 . . . 22 2 36 . . 17 . Disable Machine 255 | . . . . . 75 . 30 45 15 90 . Destroy Structure 177 | . 1 10 . . 72 5 12 16 1 50 10 Lose Combat Pursuer 180 | . . . . 15 30 30 30 75 . . . Influence Decreases 4014 | 20 155 70 88 45 754 721 474 726 326 201 434 Entered New Map 835 | . 2 . 88 . 16 182 95 12 69 7 364 Time Decay 2592 | 20 153 70 . 45 538 529 379 454 180 184 40 Lost Part 237 | . . . . . 50 10 . 60 77 10 30 Lost Ally 200 | . . . . . . . . 200 . . . Purge Threat 150 | . . . . . 150 . . . . . . Squads Dispatched 33 | . 3 1 . . 6 6 7 4 . 6 . Investigation 5 | . 1 . . . 2 1 . 1 . . . Extermination 7 | . . . . . . 3 3 . . 1 . Reinforcement 12 | . 2 . . . 3 2 1 3 . 1 . Assault 1 | . . 1 . . . . . . . . . Garrison 8 | . . . . . 1 . 3 . . 4 . Intercept . | . . . . . . . . . . . . Searches Triggered . | . . . . . . . . . . . . Construction Impeded 3 | . . . . . 1 . . 2 . . . Haulers Reinforced 1 | . . . . . . . . . . 1 . Active Scanning Responses . | . . . . . . . . . . . . Cargo Convoy Interrupts . | . . . . . . . . . . . . Stealth | -11 -10 -10 -10 -9 -8 -7 -6 -6 -6 -5 -5 --------- Run | Yrd Mat Min Exi Min Mat Fac Fac Ext Cet Fac Was Distress Signals 15 | . 3 . . . 4 . . 4 2 2 . Communications Jammed . | . . . . . . . . . . . . Distress Signals . | . . . . . . . . . . . . Times Spotted 200 | . 13 7 . 3 51 31 12 37 10 30 6 Peak Tracking Total 7 | . 5 4 . 3 7 5 4 4 5 5 5 Tactical Retreats 10 | . . . . 1 2 1 2 4 . . . Traps | -11 -10 -10 -10 -9 -8 -7 -6 -6 -6 -5 -5 ------- Run | Yrd Mat Min Exi Min Mat Fac Fac Ext Cet Fac Was Traps Triggered 10 | . 1 . . . 1 2 . 4 . 2 . Indirectly 3 | . . . . . . . . 3 . . . Trap Hack Attempts . | . . . . . . . . . . . . Triggered . | . . . . . . . . . . . . Disarmed . | . . . . . . . . . . . . Reprogrammed . | . . . . . . . . . . . . Reused . | . . . . . . . . . . . . Traps Extracted . | . . . . . . . . . . . . Installed . | . . . . . . . . . . . . Triggered . | . . . . . . . . . . . . Objects Rigged 4 | . . . . 1 1 . . 2 . . . Exploded 1 | . . . . 1 . . . . . . . Time Bombs Activated 2 | . . . . . . . . 2 . . . Exploded 2 | . . . . . . . . 2 . . . Machines | -11 -10 -10 -10 -9 -8 -7 -6 -6 -6 -5 -5 ---------- Run | Yrd Mat Min Exi Min Mat Fac Fac Ext Cet Fac Was Machines Disabled 18 | . . . . . 5 . 2 4 1 6 . Max in Single Turn 3 | . . . . . 1 . 1 1 1 3 . Garrison Access 1 | . . . . . 1 . . . . . . Energy Cycler 1 | . . . . . . . . 1 . . . Machines Repaired . | . . . . . . . . . . . . Machines Dismantled . | . . . . . . . . . . . . Machines Sabotaged . | . . . . . . . . . . . . Overloaded Fab Kills . | . . . . . . . . . . . . Hacking | -11 -10 -10 -10 -9 -8 -7 -6 -6 -6 -5 -5 --------- Run | Yrd Mat Min Exi Min Mat Fac Fac Ext Cet Fac Was Machines Accessed 31 | . 5 . 2 1 11 3 4 1 . 4 . Terminals 20 | . 5 . . 1 7 . 3 1 . 3 . Fabricators 1 | . . . . . . 1 . . . . . Repair Stations 1 | . . . . . 1 . . . . . . Recycling Units 1 | . . . . . 1 . . . . . . Scanalyzers 5 | . . . . . 1 2 1 . . 1 . Garrison Access 1 | . . . . . 1 . . . . . . Total Hacks 81 | . 17 . 2 2 32 7 9 3 . 9 . Successful 42 | . 8 . 2 . 22 5 3 . . 2 . Failed 38 | . 9 . . 2 9 2 6 3 . 7 . Catastrophic 8 | . 1 . . 1 1 . 1 1 . 3 . Database Lockouts 1 | . . . . . 1 . . . . . . Manual 39 | . 13 . 1 2 13 . 5 . . 5 . Terminals 57 | . 17 . . 2 23 . 6 3 . 6 . Fabricators 2 | . . . . . . 2 . . . . . Repair Stations 2 | . . . . . 2 . . . . . . Recycling Units 1 | . . . . . 1 . . . . . . Scanalyzers 16 | . . . . . 5 5 3 . . 3 . Garrison Access 1 | . . . . . 1 . . . . . . Terminal Hacks 18 | . 5 . 2 . 11 . . . . . . Record 1 | . . . 1 . . . . . . . . Robot Analysis 5 | . 3 . . . 2 . . . . . . Prototype ID Bank 4 | . 1 . . . 3 . . . . . . Branch Access Points 1 | . . . . . 1 . . . . . . Scanalyzer Index 1 | . . . . . 1 . . . . . . Alert Level 1 | . . . . . 1 . . . . . . Unreport Threat 1 | . . . . . 1 . . . . . . Locate Traps 1 | . . . . . 1 . . . . . . Transport Status 1 | . . . . . 1 . . . . . . Hauler Manifests 1 | . 1 . . . . . . . . . . Proto ID Catalog 1 | . . . 1 . . . . . . . . Fabricator Hacks 1 | . . . . . . 1 . . . . . Network Status 1 | . . . . . . 1 . . . . . Repair Station Hacks 2 | . . . . . 2 . . . . . . Scan Component 1 | . . . . . 1 . . . . . . Repair 1 | . . . . . 1 . . . . . . Recycling Unit Hacks 1 | . . . . . 1 . . . . . . Retrieve Components 1 | . . . . . 1 . . . . . . Scanalyzer 11 | . . . . . 4 4 2 . . 1 . Retrieve Study 11 | . . . . . 4 4 2 . . 1 . Garrison Access Hacks 1 | . . . . . 1 . . . . . . Seal Access 1 | . . . . . 1 . . . . . . Unauthorized Hacks 8 | . 3 . . . 3 . 1 . . 1 . Terminals 8 | . 3 . . . 3 . 1 . . 1 . Botnet 6 | . 2 . . . 2 . 1 . . 1 . Operators 2 | . 1 . . . 1 . . . . . . Fabricators . | . . . . . . . . . . . . Repair Stations . | . . . . . . . . . . . . Recycling Units . | . . . . . . . . . . . . Scanalyzers . | . . . . . . . . . . . . Garrison Access . | . . . . . . . . . . . . Data Cores Recovered 1 | . . . . . . 1 . . . . . Used . | . . . . . . . . . . . . Hacking Detections 26 | . 5 . . 1 9 2 4 1 . 4 . Full Trace Events 3 | . . . . . 2 . . 1 . . . Feedback Events . | . . . . . . . . . . . . Feedback Blocked . | . . . . . . . . . . . . Robot Schematics Acquired . | . . . . . . . . . . . . Robots Built . | . . . . . . . . . . . . Authchips . | . . . . . . . . . . . . Time . | . . . . . . . . . . . . Total Robot Build Rating . | . . . . . . . . . . . . Part Schematics Acquired . | . . . . . . . . . . . . Parts Built . | . . . . . . . . . . . . Authchips . | . . . . . . . . . . . . Time . | . . . . . . . . . . . . Total Part Build Rating . | . . . . . . . . . . . . Part Studies Acquired 11 | . . . . . 4 4 2 . . 1 . Parts Repaired 1 | . . . . . 1 . . . . . . Time 32 | . . . . . 32 . . . . . . Parts Recycled . | . . . . . . . . . . . . Recycled Matter . | . . . . . . . . . . . . Retrieved Matter . | . . . . . . . . . . . . Retrieved Components 10 | . . . . . 10 . . . . . . Parts Scanalyzed . | . . . . . . . . . . . . Part Schematics Acquired . | . . . . . . . . . . . . Parts Damaged . | . . . . . . . . . . . . Bothacking | -11 -10 -10 -10 -9 -8 -7 -6 -6 -6 -5 -5 ------------ Run | Yrd Mat Min Exi Min Mat Fac Fac Ext Cet Fac Was Used RIF Installer . | . . . . . . . . . . . . Robots Hacked . | . . . . . . . . . . . . Non-combat . | . . . . . . . . . . . . Combat . | . . . . . . . . . . . . Robot Hacks Applied . | . . . . . . . . . . . . Relay Couplers Released . | . . . . . . . . . . . . Fabnet Peak Effective % . | . . . . . . . . . . . . Robots Rewired 10 | . . . . . . . . 10 . . . Allies Hacked . | . . . . . . . . . . . . Hacks Repelled . | . . . . . . . . . . . . Allies | -11 -10 -10 -10 -9 -8 -7 -6 -6 -6 -5 -5 -------- Run | Yrd Mat Min Exi Min Mat Fac Fac Ext Cet Fac Was Total Allies 13 | . . 1 . . . . . 12 . . . Largest Group 6 | . . 1 1 1 . . . 6 . . . Highest-Rated Group 176 | . . 31 31 31 . . . 176 . . . Highest-Rated Ally 39 | . . 31 31 31 . . . 39 . . . Total Orders . | . . . . . . . . . . . . Ally Attacks 78 | . . 9 . 3 . . . 66 . . . Total Damage 1386 | . . 148 . 65 . . . 1173 . . . Kills 8 | . . 3 . . . . . 5 . . . Allies Corrupted . | . . . . . . . . . . . . Allies Melted . | . . . . . . . . . . . . Intel | -11 -10 -10 -10 -9 -8 -7 -6 -6 -6 -5 -5 ------- Run | Yrd Mat Min Exi Min Mat Fac Fac Ext Cet Fac Was Active Infowar (turns) 1746 | 8 832 178 383 227 118 . . . . . . Sensors 1 | . . . . 1 . . . . . . . Seismic 1745 | 8 832 178 383 226 118 . . . . . . Robot Analysis Total 5 | . 3 . . . 2 . . . . . . Derelict Logs Recovered . | . . . . . . . . . . . . Drone Launches . | . . . . . . . . . . . . Drone Recoveries . | . . . . . . . . . . . . Exploration | -11 -10 -10 -10 -9 -8 -7 -6 -6 -6 -5 -5 ------------- Run | Yrd Mat Min Exi Min Mat Fac Fac Ext Cet Fac Was Turns Passed 9911 | 79 832 178 383 230 1950 1728 1658 1784 363 632 94 Spaces Moved 4676 | 21 446 99 237 120 897 797 832 757 156 291 23 Core . | . . . . . . . . . . . . Treads 4132 | 21 446 99 237 120 353 797 832 757 156 291 23 Legs 390 | . . . . . 390 . . . . . . Wheels 154 | . . . . . 154 . . . . . . Hover . | . . . . . . . . . . . . Flight . | . . . . . . . . . . . . Fastest Speed 115 | 160 160 160 160 160 115 151 150 150 152 155 160 Average Speed 165 | 160 160 160 160 160 151 152 183 188 163 155 160 Slowest Speed 320 | 160 160 160 160 160 320 232 190 190 212 160 160 Overloaded Moves . | . . . . . . . . . . . . Propulsion Burnouts . | . . . . . . . . . . . . Robots Hopped . | . . . . . . . . . . . . Potential Cave-ins 8 | . . . . . . . . 8 . . . Cave-ins Triggered . | . . . . . . . . . . . . Exploration Rate (%) 40 | 3 71 20 60 20 73 23 27 86 56 12 35 Regions Visited 11 Branch Regions 5 Pre-discovered Areas 1 | . . . 1 . . . . . . . . Known Exits Taken 2 | . . . . . . . 1 . 1 . . Unknown Exits Taken 8 | 1 1 1 1 1 1 1 . 1 . . . Scrap Searched . | . . . . . . . . . . . . Spaces Dug 17 | . . . . . 4 . 2 11 . . . Terrain Destroyed 144 | . . 10 . . 67 . 9 27 . 23 8 Melee 2 | . . . . . . . 2 . . . . Projectile 49 | . . . . . . . . 18 . 23 8 AOE 93 | . . 10 . . 67 . 7 9 . . . Terrain Rammed . | . . . . . . . . . . . . Walls Destroyed . | . . . . . . . . . . . . Machines Disabled . | . . . . . . . . . . . . Actions | -11 -10 -10 -10 -9 -8 -7 -6 -6 -6 -5 -5 --------- Run | Yrd Mat Min Exi Min Mat Fac Fac Ext Cet Fac Was Total 6015 | 44 509 111 241 144 1281 1150 907 995 220 370 43 Wait 530 | 5 25 1 2 6 184 232 17 40 7 10 1 Move 4666 | 20 445 98 236 119 896 796 831 756 155 291 23 Hop . | . . . . . . . . . . . . Pick Up 95 | 1 6 3 3 2 21 12 11 13 14 8 1 Fast Attach 14 | 1 . . . . 9 1 . . 3 . . Attach 28 | . . 1 . . 7 4 2 7 4 3 . Detach . | . . . . . . . . . . . . Swap 104 | 3 1 2 . 4 25 18 17 8 7 17 2 Drop 73 | 2 1 1 . 3 27 15 3 4 10 6 1 Fire 385 | 12 31 5 . 8 107 66 21 66 20 34 15 Melee 3 | . . . . . . . 3 . . . . Ram . | . . . . . . . . . . . . Kick 3 | . . . . . 3 . . . . . . Crush 11 | . . . . 1 1 6 2 . . 1 . Escape Stasis 2 | . . . . . . . . 2 . . . Rewire 95 | . . . . . . . . 95 . . . Trap 6 | . . . . 1 1 . . 4 . . . Miscellaneous . | . . . . . . . . . . . . Route ------- -11/Scrapyard -10/Materials (discovered 4 exits: [*Mat x2] / [*Min x2]) -10/Mines -10/Exiles (discovered 2 exits: *Min x2) -9/Mines -8/Materials (discovered 2 exits: *Fac x2) -7/Factory -6/Factory (discovered 2 exits: *Fac / *Ext) -6/Extension (discovered 3 exits: *Fac x2 / *Cet) -6/Cetus (discovered 2 exits: *Fac / [*Arc]) -5/Factory -5/Waste History --------- Turn | Location | Event 32 | -11/Scrapyard | Discovered new exit (range 3) 80 | -11/Scrapyard | Entered Materials 283 | -10/Materials | Discovered new exit (range 16) 316 | -10/Materials | Build established: Mutant 543 | -10/Materials | Discovered new exit (range 3) 695 | -10/Materials | Discovered new exit (range 3) 722 | -10/Materials | Discovered new exit (range 15) 780 | -10/Materials | Derelicts attacked the area 912 | -10/Materials | Entered Mines 913 | -10/Mines | Met a Derelict testing a Signal Generator 1051 | -10/Mines | Found a damaged Exp. Sensor Array with a note attached 1054 | -10/Mines | Found Prototype Device 1082 | -10/Mines | Deemed a non-threat by the Exiles lab entrance 1082 | -10/Mines | Discovered new exit (range 5) 1090 | -10/Mines | Entered Exiles 1090 | -10/Exiles | Accompanied by 1 ally 1114 | -10/Exiles | Discovered new exit (range 15) 1130 | -10/Exiles | Met 8R-AWN 1156 | -10/Exiles | Met EX-HEX 1201 | -10/Exiles | Met EX-BIN 1218 | -10/Exiles | Aligned with FarCom system 1220 | -10/Exiles | Given EX-Vault access code 1257 | -10/Exiles | Opened EX-Vault 1271 | -10/Exiles | Found PSU Rigger 1303 | -10/Exiles | Warned to stay clear of 0b10 Research branches 1351 | -10/Exiles | Met EX-DEC 1357 | -10/Exiles | Learned location of Zion (-6) 1457 | -10/Exiles | Discovered new exit (range 10) 1473 | -10/Exiles | Left Exiles lab with PSU Rigger 1473 | -10/Exiles | Entered Mines 1473 | -9/Mines | Accompanied by 1 ally 1499 | -9/Mines | A weapon hastily lodged in a ceiling crevice suddenly fell to the ground 1504 | -9/Mines | Identified Exp. Sensor Array 1690 | -9/Mines | Discovered new exit (range 5) 1703 | -9/Mines | Entered Materials 1703 | -8/Materials | Evolved 4 slots: Propulsion x1, Utility x1, Weapon x2 1919 | -8/Materials | Garrison activated, responded to threat 2014 | -8/Materials | Build established: Skirmisher 2360 | -8/Materials | Discovered new exit (range 15) 2574 | -8/Materials | Discovered new exit (range 10) 2672 | -8/Materials | Build established: Scavenger-Skirmisher 2805 | -8/Materials | Repaired Hvy. Assault Rifle 3274 | -8/Materials | Central database locked down 3619 | -8/Materials | Core integrity fell below 50% 3653 | -8/Materials | Entered Factory 3653 | -7/Factory | Evolved 2 slots: Propulsion x1, Utility x1 4140 | -7/Factory | Build established: Scavenger-Tank 4887 | -7/Factory | Destroyed 7 combat bots 4948 | -7/Factory | Discovered new exit (range 8) 5292 | -7/Factory | Build established: Scientist-Skirmisher 5381 | -7/Factory | Entered another Factory area 5381 | -6/Factory | Evolved 2 slots: Propulsion x1, Weapon x1 5673 | -6/Factory | Build established: Scavenger-Skirmisher 6606 | -6/Factory | Garrison activated, responded to threat 6913 | -6/Factory | Discovered new exit (range 5) 6925 | -6/Factory | Identified exit to Factory 7015 | -6/Factory | Discovered new exit (range 12) 7034 | -6/Factory | Identified exit to Extension 7039 | -6/Factory | Entered Extension 7282 | -6/Extension | Rescued a captive Derelict 7284 | -6/Extension | Rescued a captive Derelict 7441 | -6/Extension | Energy Cycler disabled 7441 | -6/Extension | Rescued a captive Derelict 8285 | -6/Extension | Discovered exit to Factory (range 10) 8287 | -6/Extension | Discovered new exit (range 6) 8483 | -6/Extension | Spotted B-75 Beast 8488 | -6/Extension | Destroyed B-75 Beast 8538 | -6/Extension | Spotted B-75 Beast 8540 | -6/Extension | Discovered exit to Factory (range 15) 8546 | -6/Extension | Lost 4 allies 8555 | -6/Extension | Destroyed B-75 Beast 8578 | -6/Extension | Extracted ID and sensor layout for unrecognized location from A7's data core 8756 | -6/Extension | Build established: Scientist-Gunner 8823 | -6/Extension | Entered Cetus 8847 | -6/Cetus | Spotted Cetus Guard 8848 | -6/Cetus | Spotted Cetus Guard 8852 | -6/Cetus | Spotted Cetus Guard 8855 | -6/Cetus | Destroyed Cetus Guard 8858 | -6/Cetus | Spotted Cetus Guard 8868 | -6/Cetus | Destroyed Cetus Guard 8872 | -6/Cetus | Destroyed Cetus Guard 8883 | -6/Cetus | Destroyed Cetus Guard 8902 | -6/Cetus | Lost 5 parts (3n2w) 9012 | -6/Cetus | Cetus Manufacturing Module disabled 9038 | -6/Cetus | Discovered new exit (range 16) 9064 | -6/Cetus | Spotted Cetus Guard 9064 | -6/Cetus | Spotted Cetus Guard 9067 | -6/Cetus | Spotted Cetus Guard 9069 | -6/Cetus | Spotted Cetus Guard 9077 | -6/Cetus | Destroyed Cetus Guard 9080 | -6/Cetus | Destroyed Cetus Guard 9080 | -6/Cetus | Destroyed Cetus Guard 9084 | -6/Cetus | Destroyed Cetus Guard 9111 | -6/Cetus | Discovered exit to Factory (range 16) 9115 | -6/Cetus | Lost 3 parts (2n1w) 9123 | -6/Cetus | Met Revision 17 9179 | -6/Cetus | Build established: Scavenger-Gunner 9186 | -6/Cetus | Entered Factory 9186 | -5/Factory | Evolved 2 slots: Utility x1, Weapon x1 9480 | -5/Factory | Garrison activated, responded to threat 9485 | -5/Factory | Build established: Scavenger-Executioner 9581 | -5/Factory | Garrison activated, responded to threat 9640 | -5/Factory | Destroyed 13 combat bots 9752 | -5/Factory | Discovered new exit (range 12) 9818 | -5/Factory | Sucked down chute 9818 | -5/Factory | Entered Waste 9833 | -5/Waste | EMP discharged 9833 | -5/Waste | System corruption reached 10% 9857 | -5/Waste | Spotted C-40 Crusher 9868 | -5/Waste | Spotted C-40 Crusher 9872 | -5/Waste | Spotted C-40 Crusher 9875 | -5/Waste | Destroyed C-40 Crusher 9877 | -5/Waste | Spotted C-40 Crusher 9879 | -5/Waste | Destroyed C-40 Crusher 9882 | -5/Waste | Spotted C-40 Crusher 9885 | -5/Waste | Destroyed C-40 Crusher 9896 | -5/Waste | Crushed by Compactor (0 parts destroyed, 1 dropped) 9899 | -5/Waste | Crushed by Compactor (0 parts destroyed, 1 dropped) 9902 | -5/Waste | Crushed by Compactor (1 part destroyed) 9904 | -5/Waste | Spotted C-40 Crusher 9905 | -5/Waste | Crushed by Compactor (0 parts destroyed, 1 dropped) 9908 | -5/Waste | Crushed by Compactor (1 part destroyed, 1 dropped) 9911 | -5/Waste | Crushed by Compactor (1 part destroyed, 1 dropped) 9912 | -5/Waste | Self-destructed Last Messages --------------- 09903_ Slug penetrates C-40 Crusher. 09903_ C-40 Crusher suffers critical hit (Destroy). 09903_ Slug penetrates C-40 Crusher. 09904_ KE Penetrator crushed. 09905_ Hpw. Tractor Beam crushed. 09905_ Hcp. Matter Pod crushed. 09905_ Centrium Medium Armor Plating crushed. 09905_ PSU Rigger crushed. 09905_ Quantum Reactor crushed. 09906_ KE Penetrator crushed. 09906_ Slug penetrates C-40 Crusher. 09907_ Quantum Reactor crushed. 09907_ Imp. Proton Missile Launcher crushed. 09907_ Adv. Heat Sink crushed. 09908_ Quantum Reactor crushed. 09908_ Adv. KE Penetrator crushed. 09909_ Imp. Target Analyzer crushed. 09909_ Slug penetrates C-40 Crusher. 09911_ Adv. KE Penetrator crushed. 09911_ KE Penetrator crushed. Map ----- +----------------------------------------------------+ | ?????????????????????????????????????????????????? | | ?????????????????????????????????????????????????? | | ?????????????????????????????????????????????????? | | ?????????????????????????????????????????????????? | | ?????????????????????????????????????????????????? | | ?????????????????????????????????????????????????? | | ?????????????????????????????????????????????????? | | ?????????????????????????????????????????????????? | | ?????????????????????????????????????????????????? | | ?????????????????????????????????????????????????? | | ???????????? ???????? ?????????????????????? | | ???????????# #??????? #????????????????????? | | ???????????# #??????? [ #????????????????????? | | ???????????# #??????# #????????????????????? | | ?????????### #####?## #????????????????????? | | ?????????# ??? #????????????????????? | | ?????????# ???? #????????????????????? | | ?????????? ????? #????????????????????? | | ??????????? ?????? #????????????????????? | | ???????????# #??????# #????????????????????? | | #########??# #??????# #????????????????????? | | #??# #??????# #????????????????????? | | = #??# #??????# #??#?????????????????? | | = #### ########!/!*#*!##;## #????????? | | !]!CC CC ;????????? | | CC !@CC CC #????????? | | CC [[* #????????? | | / ;????????? | | #### ######## ######## ?????????? | | #??# #??????# #????????????????????? | | #??# #??????# #????????????????????? | | #########??# #??????# ! #????????????????????? | | ???????????# #??????# #????????????????????? | | ??????????? ?????? ????????????????????? | | ??????????[ ????? ???????????????????? | | ?????????# #???? #??????????????????? | | ?????????# #???? =#??????????????????? | | ?????????# ! #???? #??????????????????? | | ?????????# #??? #??????????????????? | | ?????????? ???? ???????????????????? | | ??????????? ?????? ?????????????????????? | | ?????????????????????????????????????????????????? | | ?????????????????????????????????????????????????? | | ?????????????????????????????????????????????????? | | ?????????????????????????????????????????????????? | | ?????????????????????????????????????????????????? | | ?????????????????????????????????????????????????? | | ?????????????????????????????????????????????????? | | ?????????????????????????????????????????????????? | | ?????????????????????????????????????????????????? | +----------------------------------------------------+ Best States ------------- Heat Dissipation 71 Energy Generation 25 Energy Capacity 350 Matter Stores 300 Matter Capacity 300 Sight Range 16 Terrain Scan Density 10 Armor Coverage 750 Weapon Cycling 15 Evasion (%) 55 Targeting Accuracy 8 Core Analysis 6 Recoil Reduction 5 Matter Filtering 30 Item Schematics ----------------- None Robot Schematics ------------------ None Fabricated ------------ Nothing Repaired ---------- Hvy. Assault Rifle | 15% | -8/Materials Studied --------- Hvy. Assault Rifle | -8/Materials | Hacked Lgt. Treads | -8/Materials | Hacked Lgt. Assault Rifle | -8/Materials | Hacked Hpw. Shotgun | -8/Materials | Hacked Gauss Rifle | -7/Factory | Hacked Adv. Treads | -7/Factory | Hacked Autogun | -7/Factory | Hacked Arm. Treads | -7/Factory | Hacked Coil Gun | -6/Factory | Hacked Hyp. Gauss Rifle | -6/Factory | Hacked Hvy. Machine Gun | -5/Factory | Hacked Alien Tech Used ----------------- None Achievements -------------- Left-hand Path Challenges ------------ None Game ------ Seed TiamatSensorCartridge Manual? 0 Play Time 01:07:40 Cumulative 306.7 hours Start 2026.04.05 @ 21:42:16 End 2026.04.05 @ 23:35:39 Sessions 1 Manual Loads 0 Difficulty Rogue Special Mode None Game No. 213 Rogue 213 Adventurer 0 Explorer 0 Win Type - Total 10 Types 5/1/1/2/0/0/0/0/1/0 Lore% 80 Gallery% 69 Achievement% 61 Wizard Run 0 Options --------- Layout 0 ASCII 0 Keyboard 1 Movement Numpad Keybinds 0 Fullscreen 1 Font 24/Terminus Map View 76x50 Zoom Use 0% Tactical HUD 1 Map Filters NONE Filters NONE Steam 1 RUN: 218d4869-fc9b-44b8-94d1-ee6a0863859f